[Event "Titled Tuesday Blitz August 16 Late 2022"]
[White "Ferreira, Vitor Hugo Vieira"]
[Black "Sourath Biswas"]
[WhiteFideId "2119765"]
[BlackFideId "35091484"]
[WhiteElo "2168"]
[BlackElo "1777"]
[Result "0-1"]
[Round "07"]
[TimeControl "180+1"]
[Date "2022.08.18"]
[WhiteClock "0:00:00"]
[BlackClock "0:00:00"]

1. d4 {[%clk 0:00:00]}  Nf6 {[%clk 0:00:00]} 2. c4 {[%clk 0:00:00]}  g6 {[%clk 0:00:00]} 3. Nc3 {[%clk 0:00:00]}  Bg7 {[%clk 0:00:00]} 4. e4 {[%clk 0:00:00]}  O-O {[%clk 0:00:00]} 5. f3 {[%clk 0:00:00]}  d6 {[%clk 0:00:00]} 6. Be3 {[%clk 0:00:00]}  c5 {[%clk 0:00:00]} 7. Nge2 {[%clk 0:00:00]}  Nc6 {[%clk 0:00:00]} 8. dxc5 {[%clk 0:00:00]}  dxc5 {[%clk 0:00:00]} 9. Qxd8 {[%clk 0:00:00]}  Rxd8 {[%clk 0:00:00]} 10. Bxc5 {[%clk 0:00:00]}  Nd7 {[%clk 0:00:00]} 11. Be3 {[%clk 0:00:00]}  Nde5 {[%clk 0:00:00]} 12. Nf4 {[%clk 0:00:00]}  Bh6 {[%clk 0:00:00]} 13. Rd1 {[%clk 0:00:00]}  Rxd1+ {[%clk 0:00:00]} 14. Kxd1 {[%clk 0:00:00]}  Be6 {[%clk 0:00:00]} 15. Nxe6 {[%clk 0:00:00]}  Bxe3 {[%clk 0:00:00]} 16. Nd5 {[%clk 0:00:00]}  Bh6 {[%clk 0:00:00]} 17. Nc5 {[%clk 0:00:00]}  e6 {[%clk 0:00:00]} 18. f4 {[%clk 0:00:00]}  Ng4 {[%clk 0:00:00]} 19. Nd3 {[%clk 0:00:00]}  exd5 {[%clk 0:00:00]} 20. cxd5 {[%clk 0:00:00]}  Nd4 {[%clk 0:00:00]} 21. h3 {[%clk 0:00:00]}  Ne3+ {[%clk 0:00:00]} 22. Ke1 {[%clk 0:00:00]}  Re8 {[%clk 0:00:00]} 23. Nf2 {[%clk 0:00:00]}  Bxf4 {[%clk 0:00:00]} 24. Bd3 {[%clk 0:00:00]}  Bg3 {[%clk 0:00:00]} 25. Rf1 {[%clk 0:00:00]}  Nxd5 {[%clk 0:00:00]} 26. Kd2 {[%clk 0:00:00]}  Nf4 {[%clk 0:00:00]} 27. Ng4 {[%clk 0:00:00]}  Kg7 {[%clk 0:00:00]} 28. Bc4 {[%clk 0:00:00]}  h5 {[%clk 0:00:00]} 29. Ne3 {[%clk 0:00:00]}  Nc6 {[%clk 0:00:00]} 30. Rf3 {[%clk 0:00:00]}  h4 {[%clk 0:00:00]} 31. Nf1 {[%clk 0:00:00]}  Ne5 {[%clk 0:00:00]} 32. Rc3 {[%clk 0:00:00]}  Nxg2 {[%clk 0:00:00]} 33. Bd5 {[%clk 0:00:00]}  Nf4 {[%clk 0:00:00]} 34. Nxg3 {[%clk 0:00:00]}  hxg3 {[%clk 0:00:00]} 35. Rxg3 {[%clk 0:00:00]}  Nxd5 {[%clk 0:00:00]} 36. exd5 {[%clk 0:00:00]}  Rd8 {[%clk 0:00:00]} 37. Rb3 {[%clk 0:00:00]}  Rxd5+ {[%clk 0:00:00]} 38. Ke3 {[%clk 0:00:00]}  Rd7 {[%clk 0:00:00]} 39. Ke4 {[%clk 0:00:00]}  Nc4 {[%clk 0:00:00]} 40. Rb4 {[%clk 0:00:00]}  Nd2+ {[%clk 0:00:00]} 41. Ke3 {[%clk 0:00:00]}  a5 {[%clk 0:00:00]} 42. Rb5 {[%clk 0:00:00]}  Nc4+ {[%clk 0:00:00]} 43. Kf3 {[%clk 0:00:00]}  b6 {[%clk 0:00:00]} 44. b3 {[%clk 0:00:00]}  Nd2+ {[%clk 0:00:00]} 45. Ke2 {[%clk 0:00:00]}  Rd6 {[%clk 0:00:00]} 46. h4 {[%clk 0:00:00]}  Nb1 {[%clk 0:00:00]} 47. Kf3 {[%clk 0:00:00]}  Nc3 {[%clk 0:00:00]} 48. Re5 {[%clk 0:00:00]}  Nxa2 {[%clk 0:00:00]} 49. h5 {[%clk 0:00:00]}  Rd3+ {[%clk 0:00:00]} 50. Ke2 {[%clk 0:00:00]}  Rxb3 {[%clk 0:00:00]} 51. hxg6 {[%clk 0:00:00]}  fxg6 {[%clk 0:00:00]} 52. Re7+ {[%clk 0:00:00]}  Kh6 {[%clk 0:00:00]} 53. Re3 {[%clk 0:00:00]}  Rxe3+ {[%clk 0:00:00]} 54. Kxe3 {[%clk 0:00:00]}  Nb4 {[%clk 0:00:00]} 0-1


[Site "https://www.chess.com"]

[Event "Titled Tuesday Blitz August 16 Late 2022"]
[White "Fier, Alexandr"]
[Black "Claverie, Christophe"]
[WhiteFideId "2107139"]
[BlackFideId "605514"]
[WhiteElo "2598"]
[BlackElo "2300"]
[Result "1-0"]
[Round "07"]
[TimeControl "180+1"]
[Date "2022.08.16"]
[WhiteClock "0:00:28"]
[BlackClock "0:00:06"]

1. d4 {[%clk 0:03:00]}  Nf6 {[%clk 0:02:58]} 2. Bg5 {[%clk 0:03:01]}  c5 {[%clk 0:02:57]} 3. d5 {[%clk 0:03:00]}  b5 {[%clk 0:02:55]} 4. a4 {[%clk 0:02:53]}  b4 {[%clk 0:02:54]} 5. Nd2 {[%clk 0:02:53]}  d6 {[%clk 0:02:37]} 6. e4 {[%clk 0:02:52]}  g6 {[%clk 0:02:38]} 7. Bxf6 {[%clk 0:02:51]}  exf6 {[%clk 0:02:38]} 8. Bb5+ {[%clk 0:02:52]}  Nd7 {[%clk 0:02:37]} 9. Nc4 {[%clk 0:02:50]}  Qc7 {[%clk 0:02:35]} 10. a5 {[%clk 0:02:44]}  Be7 {[%clk 0:02:21]} 11. h4 {[%clk 0:02:42]}  h5 {[%clk 0:02:17]} 12. Ne2 {[%clk 0:02:42]}  O-O {[%clk 0:02:15]} 13. Nf4 {[%clk 0:02:41]}  Ne5 {[%clk 0:02:11]} 14. Nxe5 {[%clk 0:02:38]}  fxe5 {[%clk 0:02:10]} 15. Nxh5 {[%clk 0:02:39]}  gxh5 {[%clk 0:02:03]} 16. Qxh5 {[%clk 0:02:40]}  f5 {[%clk 0:02:03]} 17. O-O-O {[%clk 0:02:28]}  fxe4 {[%clk 0:01:50]} 18. Qg6+ {[%clk 0:01:59]}  Kh8 {[%clk 0:01:50]} 19. Qxe4 {[%clk 0:01:59]}  Bf5 {[%clk 0:01:46]} 20. Qe2 {[%clk 0:01:56]}  Bh7 {[%clk 0:01:35]} 21. Bd3 {[%clk 0:01:56]}  Bf6 {[%clk 0:01:21]} 22. g4 {[%clk 0:01:56]}  e4 {[%clk 0:01:13]} 23. Bxe4 {[%clk 0:01:55]}  Rae8 {[%clk 0:01:10]} 24. f3 {[%clk 0:01:56]}  Qxa5 {[%clk 0:01:08]} 25. Kb1 {[%clk 0:01:56]}  b3 {[%clk 0:00:37]} 26. cxb3 {[%clk 0:01:55]}  Bxe4+ {[%clk 0:00:36]} 27. fxe4 {[%clk 0:01:55]}  Rb8 {[%clk 0:00:35]} 28. Rh3 {[%clk 0:01:54]}  c4 {[%clk 0:00:32]} 29. Qxc4 {[%clk 0:01:22]}  Rfc8 {[%clk 0:00:31]} 30. Qd3 {[%clk 0:01:15]}  Rb6 {[%clk 0:00:25]} 31. e5 {[%clk 0:00:56]}  Bxe5 {[%clk 0:00:24]} 32. Qg6 {[%clk 0:00:51]}  Rcb8 {[%clk 0:00:15]} 33. Qh6+ {[%clk 0:00:50]}  Kg8 {[%clk 0:00:15]} 34. Qe6+ {[%clk 0:00:50]}  Kh8 {[%clk 0:00:15]} 35. Rc1 {[%clk 0:00:46]}  Ra6 {[%clk 0:00:15]} 36. Rc8+ {[%clk 0:00:34]}  Rxc8 {[%clk 0:00:14]} 37. Qxc8+ {[%clk 0:00:35]}  Kg7 {[%clk 0:00:15]} 38. Qd7+ {[%clk 0:00:34]}  Kg8 {[%clk 0:00:15]} 39. Qe8+ {[%clk 0:00:34]}  Kg7 {[%clk 0:00:15]} 40. Qe7+ {[%clk 0:00:34]}  Kg8 {[%clk 0:00:15]} 41. Kc2 {[%clk 0:00:32]}  Qa1 {[%clk 0:00:11]} 42. Qe6+ {[%clk 0:00:29]}  Kg7 {[%clk 0:00:11]} 43. Qd7+ {[%clk 0:00:30]}  Kg8 {[%clk 0:00:11]} 44. Qc8+ {[%clk 0:00:30]}  Kg7 {[%clk 0:00:12]} 45. Kd3 {[%clk 0:00:30]}  Qxb2 {[%clk 0:00:11]} 46. Qxa6 {[%clk 0:00:28]}  Qd4+ {[%clk 0:00:11]} 47. Kc2 {[%clk 0:00:28]}  Qf2+ {[%clk 0:00:08]} 48. Kd1 {[%clk 0:00:28]}  Qf1+ {[%clk 0:00:06]} 49. Qxf1 {[%clk 0:00:28]} 1-0


[Site "https://www.chess.com"]

[Event "Titled Tuesday Blitz August 16 Late 2022"]
[White "Gheorghiu, Calin"]
[Black "Wiewiora, Eneasz"]
[WhiteFideId "1200305"]
[BlackFideId "1140396"]
[WhiteElo "2168"]
[BlackElo "2291"]
[Result "0-1"]
[Round "07"]
[TimeControl "180+1"]
[Date "2022.08.16"]
[WhiteClock "0:00:15"]
[BlackClock "0:01:26"]

1. d4 {[%clk 0:03:00]}  d6 {[%clk 0:03:00]} 2. e4 {[%clk 0:02:53]}  Nf6 {[%clk 0:03:01]} 3. Nc3 {[%clk 0:02:52]}  e5 {[%clk 0:03:01]} 4. Nge2 {[%clk 0:02:47]}  Be7 {[%clk 0:03:00]} 5. g3 {[%clk 0:02:47]}  O-O {[%clk 0:03:00]} 6. Bg2 {[%clk 0:02:48]}  c6 {[%clk 0:02:59]} 7. O-O {[%clk 0:02:48]}  b5 {[%clk 0:02:59]} 8. a3 {[%clk 0:02:47]}  a5 {[%clk 0:02:59]} 9. h3 {[%clk 0:02:42]}  Ba6 {[%clk 0:02:59]} 10. b4 {[%clk 0:02:39]}  Nbd7 {[%clk 0:02:58]} 11. Be3 {[%clk 0:02:38]}  Nb6 {[%clk 0:02:58]} 12. f4 {[%clk 0:02:38]}  Nc4 {[%clk 0:02:58]} 13. Bf2 {[%clk 0:02:38]}  Qc7 {[%clk 0:02:39]} 14. g4 {[%clk 0:02:37]}  Rfe8 {[%clk 0:02:23]} 15. g5 {[%clk 0:02:16]}  Nh5 {[%clk 0:02:22]} 16. fxe5 {[%clk 0:01:41]}  dxe5 {[%clk 0:02:23]} 17. Bf3 {[%clk 0:01:27]}  Nf4 {[%clk 0:02:17]} 18. Nxf4 {[%clk 0:01:27]}  exf4 {[%clk 0:02:18]} 19. e5 {[%clk 0:01:11]}  Bxg5 {[%clk 0:02:04]} 20. Ne4 {[%clk 0:01:09]}  Be7 {[%clk 0:02:04]} 21. c3 {[%clk 0:01:08]}  Bc8 {[%clk 0:02:02]} 22. Kh2 {[%clk 0:01:06]}  Bf5 {[%clk 0:02:02]} 23. Rg1 {[%clk 0:01:05]}  Kh8 {[%clk 0:01:59]} 24. Qc1 {[%clk 0:01:02]}  axb4 {[%clk 0:01:56]} 25. Qxf4 {[%clk 0:00:57]}  Bg6 {[%clk 0:01:42]} 26. axb4 {[%clk 0:00:55]}  Rxa1 {[%clk 0:01:41]} 27. Rxa1 {[%clk 0:00:56]}  f6 {[%clk 0:01:42]} 28. Bg3 {[%clk 0:00:47]}  fxe5 {[%clk 0:01:41]} 29. dxe5 {[%clk 0:00:48]}  Rf8 {[%clk 0:01:39]} 30. Qg4 {[%clk 0:00:23]}  Ne3 {[%clk 0:01:39]} 31. Qe6 {[%clk 0:00:20]}  Rxf3 {[%clk 0:01:35]} 32. Ra8+ {[%clk 0:00:20]}  Rf8 {[%clk 0:01:35]} 33. Rxf8+ {[%clk 0:00:18]}  Bxf8 {[%clk 0:01:36]} 34. Ng5 {[%clk 0:00:16]}  Nf1+ {[%clk 0:01:34]} 35. Kg2 {[%clk 0:00:16]}  Nxg3 {[%clk 0:01:35]} 36. Kxg3 {[%clk 0:00:16]}  Qe7 {[%clk 0:01:33]} 37. Kf4 {[%clk 0:00:14]}  Qxe6 {[%clk 0:01:29]} 38. Nxe6 {[%clk 0:00:15]}  Be7 {[%clk 0:01:30]} 39. Nc7 {[%clk 0:00:15]}  Kg8 {[%clk 0:01:26]} 0-1


[Site "https://www.chess.com"]

[Event "Titled Tuesday Blitz August 16 Late 2022"]
[White "Golubev, Mikhail"]
[Black "Bochnicka, Vladimir"]
[WhiteFideId "14100983"]
[BlackFideId "14943450"]
[WhiteElo "2374"]
[BlackElo "1939"]
[Result "1-0"]
[Round "07"]
[TimeControl "180+1"]
[Date "2022.08.18"]
[WhiteClock "0:00:00"]
[BlackClock "0:00:00"]

1. e4 {[%clk 0:00:00]}  c5 {[%clk 0:00:00]} 2. Nf3 {[%clk 0:00:00]}  Nc6 {[%clk 0:00:00]} 3. Nc3 {[%clk 0:00:00]}  e5 {[%clk 0:00:00]} 4. Bc4 {[%clk 0:00:00]}  d6 {[%clk 0:00:00]} 5. d3 {[%clk 0:00:00]}  Be7 {[%clk 0:00:00]} 6. Nd2 {[%clk 0:00:00]}  Bg5 {[%clk 0:00:00]} 7. h4 {[%clk 0:00:00]}  Bh6 {[%clk 0:00:00]} 8. Nf1 {[%clk 0:00:00]}  Bxc1 {[%clk 0:00:00]} 9. Rxc1 {[%clk 0:00:00]}  Nf6 {[%clk 0:00:00]} 10. Ne3 {[%clk 0:00:00]}  O-O {[%clk 0:00:00]} 11. g4 {[%clk 0:00:00]}  Qd7 {[%clk 0:00:00]} 12. g5 {[%clk 0:00:00]}  Ng4 {[%clk 0:00:00]} 13. Nf5 {[%clk 0:00:00]}  g6 {[%clk 0:00:00]} 14. Qxg4 {[%clk 0:00:00]}  gxf5 {[%clk 0:00:00]} 15. Qh5 {[%clk 0:00:00]}  fxe4 {[%clk 0:00:00]} 16. g6 {[%clk 0:00:00]}  Kg7 {[%clk 0:00:00]} 17. Qxh7+ {[%clk 0:00:00]}  Kf6 {[%clk 0:00:00]} 18. Nd5+ {[%clk 0:00:00]}  Ke6 {[%clk 0:00:00]} 19. Nb6+ {[%clk 0:00:00]}  d5 {[%clk 0:00:00]} 20. Bxd5+ {[%clk 0:00:00]}  Qxd5 {[%clk 0:00:00]} 21. Nxd5 {[%clk 0:00:00]}  Kxd5 {[%clk 0:00:00]} 22. g7 {[%clk 0:00:00]}  Be6 {[%clk 0:00:00]} 23. dxe4+ {[%clk 0:00:00]}  Kd6 {[%clk 0:00:00]} 24. gxf8=B+ {[%clk 0:00:00]}  Rxf8 {[%clk 0:00:00]} 25. Rd1+ {[%clk 0:00:00]}  Ke7 {[%clk 0:00:00]} 26. c3 {[%clk 0:00:00]}  Bxa2 {[%clk 0:00:00]} 27. Rg1 {[%clk 0:00:00]}  Bb3 {[%clk 0:00:00]} 28. Rd2 {[%clk 0:00:00]}  a5 {[%clk 0:00:00]} 29. Rg8 {[%clk 0:00:00]}  a4 {[%clk 0:00:00]} 30. Rxf8 {[%clk 0:00:00]}  Kxf8 {[%clk 0:00:00]} 31. h5 {[%clk 0:00:00]}  b5 {[%clk 0:00:00]} 32. h6 {[%clk 0:00:00]}  b4 {[%clk 0:00:00]} 33. Qg7+ {[%clk 0:00:00]} 1-0


[Site "https://www.chess.com"]

[Event "Titled Tuesday Blitz August 16 Late 2022"]
[White "Goncalves, Davi Sulzbacher"]
[Black "Ozalp, Burak"]
[WhiteFideId "2154510"]
[BlackFideId "6314210"]
[WhiteElo "2107"]
[BlackElo "1854"]
[Result "1-0"]
[Round "07"]
[TimeControl "180+1"]
[Date "2022.08.18"]
[WhiteClock "0:00:00"]
[BlackClock "0:00:00"]

1. Nf3 {[%clk 0:00:00]}  g6 {[%clk 0:00:00]} 2. e4 {[%clk 0:00:00]}  Bg7 {[%clk 0:00:00]} 3. d4 {[%clk 0:00:00]}  d6 {[%clk 0:00:00]} 4. Bc4 {[%clk 0:00:00]}  Nf6 {[%clk 0:00:00]} 5. e5 {[%clk 0:00:00]}  dxe5 {[%clk 0:00:00]} 6. Nxe5 {[%clk 0:00:00]}  O-O {[%clk 0:00:00]} 7. O-O {[%clk 0:00:00]}  c6 {[%clk 0:00:00]} 8. Nc3 {[%clk 0:00:00]}  Nbd7 {[%clk 0:00:00]} 9. Bg5 {[%clk 0:00:00]}  Nb6 {[%clk 0:00:00]} 10. Bb3 {[%clk 0:00:00]}  a5 {[%clk 0:00:00]} 11. a3 {[%clk 0:00:00]}  a4 {[%clk 0:00:00]} 12. Ba2 {[%clk 0:00:00]}  Bf5 {[%clk 0:00:00]} 13. Re1 {[%clk 0:00:00]}  h6 {[%clk 0:00:00]} 14. Bh4 {[%clk 0:00:00]}  g5 {[%clk 0:00:00]} 15. Bg3 {[%clk 0:00:00]}  Nbd5 {[%clk 0:00:00]} 16. Ne2 {[%clk 0:00:00]}  Ne4 {[%clk 0:00:00]} 17. c4 {[%clk 0:00:00]}  Nb6 {[%clk 0:00:00]} 18. c5 {[%clk 0:00:00]}  Nd5 {[%clk 0:00:00]} 19. Bxd5 {[%clk 0:00:00]}  Qxd5 {[%clk 0:00:00]} 20. Nc3 {[%clk 0:00:00]}  Nxc3 {[%clk 0:00:00]} 21. bxc3 {[%clk 0:00:00]}  Rfd8 {[%clk 0:00:00]} 22. Qh5 {[%clk 0:00:00]}  Qe6 {[%clk 0:00:00]} 23. h4 {[%clk 0:00:00]}  g4 {[%clk 0:00:00]} 24. Bf4 {[%clk 0:00:00]}  Kh7 {[%clk 0:00:00]} 25. Qxf7 {[%clk 0:00:00]}  Qxf7 {[%clk 0:00:00]} 26. Nxf7 {[%clk 0:00:00]}  Rf8 {[%clk 0:00:00]} 27. Rxe7 {[%clk 0:00:00]}  Bf6 {[%clk 0:00:00]} 28. Rxb7 {[%clk 0:00:00]}  Kg6 {[%clk 0:00:00]} 29. Ne5+ {[%clk 0:00:00]}  Bxe5 {[%clk 0:00:00]} 30. Bxe5 {[%clk 0:00:00]}  Be4 {[%clk 0:00:00]} 31. Re1 {[%clk 0:00:00]}  Bd5 {[%clk 0:00:00]} 32. Rg7+ {[%clk 0:00:00]}  Kh5 {[%clk 0:00:00]} 33. Bf6 {[%clk 0:00:00]}  Rae8 {[%clk 0:00:00]} 34. Be7 {[%clk 0:00:00]}  g3 {[%clk 0:00:00]} 35. Re5+ {[%clk 0:00:00]} 1-0


[Site "https://www.chess.com"]

[Event "Titled Tuesday Blitz August 16 Late 2022"]
[White "Graif, William"]
[Black "Leitao, Rafael"]
[WhiteFideId "2609835"]
[BlackFideId "2101246"]
[WhiteElo "1942"]
[BlackElo "2609"]
[Result "1-0"]
[Round "07"]
[TimeControl "180+1"]
[Date "2022.08.18"]
[WhiteClock "0:00:00"]
[BlackClock "0:00:00"]

1. d4 {[%clk 0:00:00]}  Nf6 {[%clk 0:00:00]} 2. Nc3 {[%clk 0:00:00]}  d5 {[%clk 0:00:00]} 3. e4 {[%clk 0:00:00]}  dxe4 {[%clk 0:00:00]} 4. Bg5 {[%clk 0:00:00]}  h6 {[%clk 0:00:00]} 5. Bxf6 {[%clk 0:00:00]}  exf6 {[%clk 0:00:00]} 6. Nxe4 {[%clk 0:00:00]}  Qe7 {[%clk 0:00:00]} 7. Qe2 {[%clk 0:00:00]}  f5 {[%clk 0:00:00]} 8. Nc3 {[%clk 0:00:00]}  Qxe2+ {[%clk 0:00:00]} 9. Bxe2 {[%clk 0:00:00]}  c6 {[%clk 0:00:00]} 10. O-O-O {[%clk 0:00:00]}  Bb4 {[%clk 0:00:00]} 11. Nf3 {[%clk 0:00:00]}  O-O {[%clk 0:00:00]} 12. a3 {[%clk 0:00:00]}  Bxc3 {[%clk 0:00:00]} 13. bxc3 {[%clk 0:00:00]}  Nd7 {[%clk 0:00:00]} 14. Rhe1 {[%clk 0:00:00]}  Nf6 {[%clk 0:00:00]} 15. Bd3 {[%clk 0:00:00]}  Be6 {[%clk 0:00:00]} 16. c4 {[%clk 0:00:00]}  Rfd8 {[%clk 0:00:00]} 17. c3 {[%clk 0:00:00]}  b5 {[%clk 0:00:00]} 18. c5 {[%clk 0:00:00]}  g6 {[%clk 0:00:00]} 19. Ne5 {[%clk 0:00:00]}  Bd5 {[%clk 0:00:00]} 20. f3 {[%clk 0:00:00]}  a5 {[%clk 0:00:00]} 21. c4 {[%clk 0:00:00]}  bxc4 {[%clk 0:00:00]} 22. Bxc4 {[%clk 0:00:00]}  Bxc4 {[%clk 0:00:00]} 23. Nxc4 {[%clk 0:00:00]}  Nd5 {[%clk 0:00:00]} 24. Kc2 {[%clk 0:00:00]}  a4 {[%clk 0:00:00]} 25. Rb1 {[%clk 0:00:00]}  Ra7 {[%clk 0:00:00]} 26. g3 {[%clk 0:00:00]}  Kf8 {[%clk 0:00:00]} 27. Kd3 {[%clk 0:00:00]}  Rad7 {[%clk 0:00:00]} 28. Nd6 {[%clk 0:00:00]}  h5 {[%clk 0:00:00]} 29. Kc4 {[%clk 0:00:00]}  Kg7 {[%clk 0:00:00]} 30. Rb7 {[%clk 0:00:00]}  Rxb7 {[%clk 0:00:00]} 31. Nxb7 {[%clk 0:00:00]}  Ra8 {[%clk 0:00:00]} 32. Re5 {[%clk 0:00:00]}  Kf6 {[%clk 0:00:00]} 33. Rxd5 {[%clk 0:00:00]}  cxd5+ {[%clk 0:00:00]} 34. Kxd5 {[%clk 0:00:00]}  Ke7 {[%clk 0:00:00]} 35. Kc6 {[%clk 0:00:00]}  Rc8+ {[%clk 0:00:00]} 36. Kb6 {[%clk 0:00:00]}  Rd8 {[%clk 0:00:00]} 37. c6 {[%clk 0:00:00]}  Rxd4 {[%clk 0:00:00]} 38. Nc5 {[%clk 0:00:00]}  Kd6 {[%clk 0:00:00]} 39. c7 {[%clk 0:00:00]}  Rd2 {[%clk 0:00:00]} 40. c8=Q {[%clk 0:00:00]}  Rb2+ {[%clk 0:00:00]} 41. Ka7 {[%clk 0:00:00]}  Rc2 {[%clk 0:00:00]} 42. Nb7+ {[%clk 0:00:00]}  Ke5 {[%clk 0:00:00]} 43. Qxc2 {[%clk 0:00:00]} 1-0


[Site "https://www.chess.com"]

[Event "Titled Tuesday Blitz August 16 Late 2022"]
[White "Kaganskiy, Gleb"]
[Black "Prieto Aranguren, Alain"]
[WhiteFideId "4132025"]
[BlackFideId "2268906"]
[WhiteElo "2165"]
[BlackElo "2224"]
[Result "1-0"]
[Round "07"]
[TimeControl "180+1"]
[Date "2022.08.18"]
[WhiteClock "0:00:00"]
[BlackClock "0:00:00"]

1. e4 {[%clk 0:00:00]}  c6 {[%clk 0:00:00]} 2. d4 {[%clk 0:00:00]}  d5 {[%clk 0:00:00]} 3. Nd2 {[%clk 0:00:00]}  a6 {[%clk 0:00:00]} 4. c3 {[%clk 0:00:00]}  h5 {[%clk 0:00:00]} 5. exd5 {[%clk 0:00:00]}  cxd5 {[%clk 0:00:00]} 6. Ngf3 {[%clk 0:00:00]}  Nc6 {[%clk 0:00:00]} 7. Bd3 {[%clk 0:00:00]}  Bg4 {[%clk 0:00:00]} 8. h3 {[%clk 0:00:00]}  Bd7 {[%clk 0:00:00]} 9. O-O {[%clk 0:00:00]}  Nf6 {[%clk 0:00:00]} 10. Re1 {[%clk 0:00:00]}  e6 {[%clk 0:00:00]} 11. Nf1 {[%clk 0:00:00]}  Bd6 {[%clk 0:00:00]} 12. a4 {[%clk 0:00:00]}  Qc7 {[%clk 0:00:00]} 13. Bg5 {[%clk 0:00:00]}  O-O-O {[%clk 0:00:00]} 14. Bh4 {[%clk 0:00:00]}  Rdg8 {[%clk 0:00:00]} 15. Bg3 {[%clk 0:00:00]}  g5 {[%clk 0:00:00]} 16. b4 {[%clk 0:00:00]}  g4 {[%clk 0:00:00]} 17. hxg4 {[%clk 0:00:00]}  hxg4 {[%clk 0:00:00]} 18. Bxd6 {[%clk 0:00:00]}  gxf3 {[%clk 0:00:00]} 19. Qxf3 {[%clk 0:00:00]}  Qxd6 {[%clk 0:00:00]} 20. Qxf6 {[%clk 0:00:00]}  Rg4 {[%clk 0:00:00]} 21. Qxh8+ {[%clk 0:00:00]}  Kc7 {[%clk 0:00:00]} 22. Qh2 {[%clk 0:00:00]} 1-0


[Site "https://www.chess.com"]

[Event "Titled Tuesday Blitz August 16 Late 2022"]
[White "Kalavannan, Koby"]
[Black "Harshavardhan G B"]
[WhiteFideId "425753"]
[BlackFideId "25059009"]
[WhiteElo "1927"]
[BlackElo "1890"]
[Result "1-0"]
[Round "07"]
[TimeControl "180+1"]
[Date "2022.08.18"]
[WhiteClock "0:00:00"]
[BlackClock "0:00:00"]

1. d4 {[%clk 0:00:00]}  d5 {[%clk 0:00:00]} 2. Nf3 {[%clk 0:00:00]}  Nf6 {[%clk 0:00:00]} 3. c4 {[%clk 0:00:00]}  c6 {[%clk 0:00:00]} 4. Qb3 {[%clk 0:00:00]}  dxc4 {[%clk 0:00:00]} 5. Qxc4 {[%clk 0:00:00]}  Bg4 {[%clk 0:00:00]} 6. Qb3 {[%clk 0:00:00]}  Qb6 {[%clk 0:00:00]} 7. Nc3 {[%clk 0:00:00]}  Nbd7 {[%clk 0:00:00]} 8. e4 {[%clk 0:00:00]}  e6 {[%clk 0:00:00]} 9. Be3 {[%clk 0:00:00]}  Bxf3 {[%clk 0:00:00]} 10. gxf3 {[%clk 0:00:00]}  Be7 {[%clk 0:00:00]} 11. Rg1 {[%clk 0:00:00]}  g6 {[%clk 0:00:00]} 12. Qc2 {[%clk 0:00:00]}  O-O {[%clk 0:00:00]} 13. Rd1 {[%clk 0:00:00]}  Nh5 {[%clk 0:00:00]} 14. f4 {[%clk 0:00:00]}  f5 {[%clk 0:00:00]} 15. Bc4 {[%clk 0:00:00]}  Ng7 {[%clk 0:00:00]} 16. d5 {[%clk 0:00:00]}  Qb4 {[%clk 0:00:00]} 17. dxe6 {[%clk 0:00:00]}  Nf6 {[%clk 0:00:00]} 18. Bb3 {[%clk 0:00:00]}  Nxe4 {[%clk 0:00:00]} 19. Rd4 {[%clk 0:00:00]}  Qa5 {[%clk 0:00:00]} 20. Ra4 {[%clk 0:00:00]}  Qc7 {[%clk 0:00:00]} 21. Nd5 {[%clk 0:00:00]}  Qd8 {[%clk 0:00:00]} 22. Nxe7+ {[%clk 0:00:00]}  Qxe7 {[%clk 0:00:00]} 23. Rxe4 {[%clk 0:00:00]}  fxe4 {[%clk 0:00:00]} 24. Bc5 {[%clk 0:00:00]}  Qf6 {[%clk 0:00:00]} 25. e7+ {[%clk 0:00:00]}  Rf7 {[%clk 0:00:00]} 26. Qxe4 {[%clk 0:00:00]}  Re8 {[%clk 0:00:00]} 27. Rg5 {[%clk 0:00:00]}  b6 {[%clk 0:00:00]} 28. Bd4 {[%clk 0:00:00]}  Qd6 {[%clk 0:00:00]} 29. Re5 {[%clk 0:00:00]}  a5 {[%clk 0:00:00]} 30. Bc3 {[%clk 0:00:00]}  a4 {[%clk 0:00:00]} 31. Qxa4 {[%clk 0:00:00]}  Nf5 {[%clk 0:00:00]} 32. Qc4 {[%clk 0:00:00]}  Rxe7 {[%clk 0:00:00]} 33. Rxe7 {[%clk 0:00:00]}  Qxe7+ {[%clk 0:00:00]} 34. Kf1 {[%clk 0:00:00]}  Nd6 {[%clk 0:00:00]} 35. Qxc6 {[%clk 0:00:00]}  h5 {[%clk 0:00:00]} 36. Qa8+ {[%clk 0:00:00]}  Ne8 {[%clk 0:00:00]} 37. Qd5 {[%clk 0:00:00]}  Nd6 {[%clk 0:00:00]} 38. Qd4 {[%clk 0:00:00]} 1-0


[Site "https://www.chess.com"]